bitfinex-derivatives/quotes_BTCF0:USTF0_20241231
["timestamp","ask_amount","ask_price","bid_price","bid_amount"]
[1735640341846,0.053416,93759.0,93758.0,0.414216]
[1735640342236,0.531926,93776.0,93758.0,0.3608]
[1735640342440,0.053413,93764.0,93763.0,0.10907147]
[1735640342635,0.053413,93764.0,93758.0,0.3608]
[1735640343335,0.54730087,93776.0,93758.0,0.3608]
[1735640343336,0.05341,93770.0,93758.0,0.3608]
[1735640343531,0.05341,93770.0,93769.0,0.3608]
[1735640345138,0.05741,93770.0,93769.0,0.3608]
[1735640345546,0.05741,93770.0,93769.0,0.41421]
[1735640346639,0.007,93770.0,93769.0,0.41421]
[1735640347143,0.011,93770.0,93769.0,0.41521]
[1735640347345,0.053405,93778.0,93770.0,0.053409]
[1735640347536,0.053405,93778.0,93777.0,0.3608]
[1735640348950,0.062405,93778.0,93777.0,0.3618]
[1735640349841,0.064405,93778.0,93777.0,0.415205]
[1735640351047,0.062405,93778.0,93777.0,0.415205]
[1735640351243,0.013,93778.0,93777.0,0.415205]
[1735640351445,0.053398,93790.0,93789.0,0.053399]
[1735640351649,0.00159974,93797.0,93792.0,0.053397]
[1735640351943,0.00159974,93797.0,93793.0,0.0397]
[1735640352149,0.00159974,93797.0,93796.0,0.053395]
[1735640354145,0.00859974,93797.0,93796.0,0.054395]
[1735640354845,0.00859974,93797.0,93796.0,0.415195]
[1735640355050,0.053386,93812.0,93798.0,0.053393]
[1735640355245,0.00159922,93816.0,93810.0,0.3608]
[1735640355759,0.00159922,93816.0,93815.0,0.053384]
[1735640356848,0.00559922,93816.0,93815.0,0.053384]
[1735640357646,0.00459922,93816.0,93815.0,0.053384]
[1735640357853,0.00459922,93816.0,93815.0,0.054384]
[1735640358953,0.05798222,93816.0,93815.0,0.001]
[1735640359948,0.053394,93797.0,93796.0,0.3608]
[1735640360257,0.053398,93791.0,93790.0,0.10907147]
[1735640360445,0.3608,93804.0,93785.0,0.053401]
[1735640360646,0.053398,93791.0,93790.0,0.10907147]
[1735640360956,0.053403,93782.0,93781.0,0.10907147]
[1735640361249,0.67579869,93804.0,93772.0,0.10907147]
[1735640361442,0.053398,93791.0,93790.0,0.11107147]
[1735640361642,0.053398,93791.0,93790.0,0.002]
[1735640362249,0.051398,93791.0,93790.0,0.055398]
[1735640363048,0.002,93791.0,93790.0,0.416198]
[1735640363439,0.002,93791.0,93790.0,0.414198]
[1735640364153,0.011,93791.0,93790.0,0.415198]
[1735640364656,0.002,93791.0,93790.0,0.414198]
[1735640364857,0.005,93791.0,93790.0,0.414198]
[1735640365258,0.002,93791.0,93790.0,0.414198]
[1735640365450,0.004,93791.0,93790.0,0.414198]
[1735640365659,0.004,93791.0,93790.0,0.417198]
[1735640366358,0.004,93791.0,93790.0,0.414198]
[1735640366560,0.05339,93805.0,93804.0,0.05339]
[1735640366754,0.05339,93805.0,93804.0,0.41419]
[1735640368355,0.05739,93805.0,93804.0,0.41419]
[1735640368967,0.004,93805.0,93804.0,0.41419]
[1735640369664,0.05739,93805.0,93804.0,0.41419]
[1735640369960,0.05539,93805.0,93804.0,0.41519]
[1735640370360,0.05639,93805.0,93804.0,0.41519]
[1735640371861,0.05539,93805.0,93804.0,0.41519]
[1735640372166,0.05739,93805.0,93804.0,0.41519]
[1735640373264,0.05539,93805.0,93804.0,0.41519]
[1735640374053,0.05339,93805.0,93804.0,0.41519]
[1735640374254,0.05339,93805.0,93804.0,0.41419]
[1735640374465,0.05339,93805.0,93804.0,0.3608]
[1735640374967,0.05539,93805.0,93804.0,0.3608]
[1735640375149,0.05539,93805.0,93804.0,0.41419]
[1735640377955,0.002,93805.0,93804.0,0.41419]
[1735640379467,0.05539,93805.0,93804.0,0.41419]
[1735640379759,0.05839,93805.0,93804.0,0.41419]
[1735640380157,0.05539,93805.0,93804.0,0.3608]
[1735640380358,0.05839,93805.0,93804.0,0.3608]
[1735640380558,0.05839,93805.0,93804.0,0.41419]
[1735640380861,0.05739,93805.0,93804.0,0.41419]
[1735640381169,0.004,93805.0,93804.0,0.41419]
[1735640381557,0.003,93805.0,93804.0,0.41419]
[1735640381763,0.004,93805.0,93804.0,0.41419]
[1735640382457,0.05739,93805.0,93790.0,0.3608]
[1735640382862,0.053398,93791.0,93790.0,0.3608]
[1735640383461,0.053398,93791.0,93790.0,0.28732223]
[1735640383663,0.053391,93803.0,93790.0,0.28732223]
[1735640383859,0.053395,93796.0,93795.0,0.053395]
[1735640384258,0.053398,93791.0,93790.0,0.34372023]
[1735640384459,0.053398,93791.0,93790.0,0.29032223]
[1735640384864,0.3608,93802.0,93790.0,0.29032223]
[1735640384865,0.27289216,93802.0,93790.0,0.29032223]
[1735640385068,0.27289216,93802.0,93790.0,0.28832223]
[1735640385366,0.053398,93791.0,93790.0,0.28832223]
[1735640386758,0.054398,93791.0,93790.0,0.28832223]
[1735640392265,0.06859199,93791.0,93790.0,0.28832223]
[1735640393662,0.06859199,93791.0,93790.0,0.001]
[1735640397671,0.06859199,93791.0,93790.0,0.00071604]
[1735640399177,0.37599399,93791.0,93771.0,0.4]
[1735640399471,0.053408,93772.0,93771.0,0.0392]
[1735640400979,0.053408,93772.0,93771.0,0.0442]
[1735640401176,0.3608,93782.0,93774.0,0.053407]
[1735640402374,0.3648,93782.0,93774.0,0.053407]
[1735640402570,0.3648,93782.0,93762.0,0.3608]
[1735640402571,0.053408,93772.0,93762.0,0.3608]
[1735640402783,0.053413,93763.0,93762.0,0.3608]
[1735640404887,0.053413,93763.0,93762.0,0.3618]
[1735640405071,0.054413,93763.0,93762.0,0.3618]
[1735640405483,0.054413,93763.0,93762.0,0.001]
[1735640411382,0.053405,93778.0,93775.0,0.053406]
[1735640411580,0.053405,93778.0,93776.0,0.0796]
[1735640411886,0.053405,93778.0,93777.0,0.053405]
[1735640412079,0.11489215,93780.0,93776.0,0.0796]
[1735640412276,0.053399,93789.0,93787.0,0.0534]
[1735640412479,0.47908001,93795.0,93789.0,0.053399]
[1735640412679,0.3608,93803.0,93789.0,0.053399]
[1735640412880,0.3608,93803.0,93788.0,0.3608]
[1735640413285,0.053397,93792.0,93788.0,0.414199]
[1735640413487,0.004,93789.0,93788.0,0.414199]
[1735640413990,0.057399,93789.0,93788.0,0.414199]
[1735640415588,0.053399,93789.0,93788.0,0.454599]
[1735640416389,0.003,93789.0,93788.0,0.4012]
[1735640416595,0.003,93789.0,93788.0,0.453599]
[1735640416896,0.005,93789.0,93788.0,0.454599]
[1735640417087,0.002,93789.0,93788.0,0.454599]
[1735640417291,0.005,93789.0,93788.0,0.454599]
[1735640417590,0.004755,93796.0,93788.0,0.4012]
[1735640417898,0.053396,93794.0,93792.0,0.053397]
[1735640418093,0.053396,93793.0,93792.0,0.053397]
[1735640419794,0.053396,93793.0,93792.0,0.054397]
[1735640420193,0.053396,93793.0,93792.0,0.053397]
[1735640420383,0.054395,93796.0,93794.0,0.053396]
[1735640420586,0.053395,93795.0,93794.0,0.053396]
[1735640420790,0.001,93796.0,93792.0,0.001]
[1735640421088,0.053396,93794.0,93792.0,0.001]
[1735640421293,0.002,93793.0,93792.0,0.001]
[1735640421489,0.002,93793.0,93792.0,0.00071497]
[1735640422000,0.053396,93794.0,93792.0,0.00071497]
[1735640422494,0.053396,93794.0,93792.0,0.05411197]
[1735640422692,0.053396,93794.0,93792.0,0.054397]
[1735640422889,0.002,93796.0,93792.0,0.001]
[1735640422890,0.053396,93793.0,93792.0,0.001]
[1735640423287,0.002,93796.0,93788.0,0.4002]
[1735640423486,0.002,93796.0,93792.0,0.001]
[1735640423791,0.053396,93793.0,93792.0,0.001]
[1735640423991,0.053396,93793.0,93792.0,0.054397]
[1735640424196,0.056396,93793.0,93792.0,0.054397]
[1735640424892,0.056396,93793.0,93792.0,0.053397]
[1735640425096,0.058396,93793.0,93792.0,0.054397]
[1735640427299,0.058396,93793.0,93792.0,0.001]
[1735640431602,0.053404,93779.0,93778.0,0.3608]
[1735640433193,0.055404,93779.0,93778.0,0.3608]
[1735640434096,0.0698984,93779.0,93778.0,0.3608]
[1735640434303,0.055404,93779.0,93778.0,0.3608]
[1735640434487,0.055404,93779.0,93778.0,0.414205]
[1735640434889,0.002,93779.0,93778.0,0.414205]
[1735640436098,0.3608,93800.0,93778.0,0.67505683]
[1735640436399,0.053392,93800.0,93799.0,0.053393]
[1735640436702,0.05339,93804.0,93803.0,0.05339]
[1735640436900,0.05339,93804.0,93803.0,0.41419]
[1735640437395,0.05339,93804.0,93803.0,0.3608]
[1735640437992,0.05639,93804.0,93803.0,0.3608]
[1735640438691,0.05739,93804.0,93803.0,0.3618]
[1735640439599,0.05439,93804.0,93803.0,0.3608]
[1735640439799,0.05639,93804.0,93803.0,0.3618]
[1735640440299,0.05639,93804.0,93803.0,0.415191]
[1735640440498,0.053391,93802.0,93785.0,0.053401]
[1735640440701,0.053394,93797.0,93785.0,0.053401]
[1735640440903,0.053394,93797.0,93780.0,0.0418]
[1735640440904,0.053401,93785.0,93784.0,0.053401]
[1735640441292,0.052401,93785.0,93784.0,0.053401]
[1735640441493,0.052401,93785.0,93784.0,0.414201]
[1735640442609,0.053401,93785.0,93784.0,0.414201]
[1735640446098,0.053401,93785.0,93784.0,0.3608]
[1735640446603,0.053401,93785.0,93773.0,0.3608]
[1735640446604,0.053407,93774.0,93773.0,0.3608]
[1735640447107,0.053407,93774.0,93765.0,0.4158115]
[1735640447108,0.053412,93766.0,93765.0,0.4158115]
[1735640448211,0.051412,93766.0,93765.0,0.4158115]
[1735640448915,0.051412,93766.0,93765.0,0.4218115]
[1735640449205,0.048412,93766.0,93765.0,0.4158115]
[1735640449415,0.048412,93766.0,93765.0,0.4188115]
[1735640449912,0.048412,93766.0,93765.0,0.4218115]
[1735640450511,0.053408,93774.0,93773.0,0.053407]
[1735640450810,0.053408,93774.0,93773.0,0.414207]
[1735640451910,0.354408,93774.0,93765.0,0.0045995]
[1735640452103,0.053418,93755.0,93738.0,0.053427]
[1735640452297,0.053428,93738.0,93736.0,0.0395]
[1735640452804,0.053428,93738.0,93737.0,0.053428]
[1735640453006,0.049428,93738.0,93737.0,0.053428]
[1735640454612,0.050428,93738.0,93737.0,0.053428]
[1735640455012,0.001,93738.0,93737.0,0.053428]
[1735640455314,0.002,93738.0,93737.0,0.053428]
[1735640455609,0.001,93738.0,93737.0,0.053428]
[1735640455813,0.002,93738.0,93737.0,0.060428]
[1735640456010,0.001,93738.0,93737.0,0.060428]
[1735640456216,0.001,93738.0,93737.0,0.061428]
[1735640456217,0.002,93738.0,93737.0,0.061428]
[1735640458312,0.137108,93773.0,93737.0,0.061428]
[1735640458313,0.00160002,93761.0,93737.0,0.308]
[1735640458514,0.053413,93764.0,93763.0,0.053412]
[1735640458908,0.053413,93764.0,93763.0,1.553412]
[1735640459214,0.053407,93779.0,93778.0,0.053404]
[1735640461108,0.053407,93775.0,93774.0,0.3608]
[1735640461917,0.052407,93775.0,93774.0,0.3608]
[1735640462112,0.053408,93772.0,93761.0,0.0376]
[1735640462512,0.053409,93771.0,93761.0,0.0376]
[1735640462913,0.052409,93771.0,93770.0,0.053409]
[1735640466014,0.062409,93771.0,93770.0,0.054409]
[1735640469410,0.0153166,93783.0,93770.0,0.3618]
[1735640469411,0.00159995,93783.0,93770.0,0.3618]
[1735640469611,0.15206773,93799.0,93782.0,0.414203]
[1735640469816,0.20546073,93799.0,93798.0,0.053394]
[1735640470126,0.11496773,93799.0,93798.0,0.053394]
[1735640470510,0.053388,93809.0,93792.0,0.053397]
[1735640470717,0.053388,93809.0,93805.0,0.053389]
[1735640470911,0.01385247,93813.0,93801.0,0.3608]
[1735640471215,0.053385,93814.0,93813.0,0.053384]
[1735640471410,0.053385,93813.0,93805.0,0.10907147]
[1735640471913,0.05498137,93818.0,93806.0,0.0385]
[1735640472123,0.053383,93817.0,93813.0,0.053385]
[1735640472525,0.414183,93816.0,93813.0,0.053385]
[1735640473422,0.421183,93816.0,93813.0,0.054385]
[1735640473617,0.3678,93816.0,93813.0,0.055385]
[1735640473819,0.053384,93815.0,93813.0,0.055385]
[1735640474027,0.053384,93814.0,93813.0,0.055385]
[1735640476034,0.053384,93814.0,93813.0,0.001]
[1735640476322,0.060384,93814.0,93813.0,0.002]
[1735640480328,0.007,93814.0,93813.0,0.002]
[1735640480529,0.007,93814.0,93813.0,0.055385]
[1735640482629,0.053384,93816.0,93813.0,0.054385]
[1735640482827,0.006,93814.0,93813.0,0.002]
[1735640483125,0.059384,93814.0,93813.0,0.002]
[1735640484720,0.053384,93814.0,93813.0,0.002]
[1735640485121,0.3668,93816.0,93780.0,0.3608]
[1735640485324,0.3668,93816.0,93784.0,0.0385]
[1735640485325,0.3608,93805.0,93784.0,0.0385]
[1735640485530,0.053398,93790.0,93789.0,0.053399]
[1735640485923,0.053398,93791.0,93789.0,0.414198]
[1735640486223,0.10907147,93800.0,93789.0,0.414198]
[1735640486224,0.053398,93790.0,93789.0,0.3608]
[1735640486828,0.053399,93788.0,93787.0,0.0534]
[1735640487128,0.053403,93783.0,93782.0,0.053402]
[1735640487522,0.053403,93783.0,93780.0,0.3608]
[1735640487523,0.10907147,93792.0,93780.0,0.3608]
[1735640487719,0.10907147,93800.0,93790.0,0.3608]
[1735640487924,0.053397,93792.0,93791.0,0.053396]
[1735640489135,0.054397,93792.0,93791.0,0.053396]
[1735640490029,0.055397,93792.0,93791.0,0.053396]
[1735640491019,0.053398,93791.0,93790.0,0.3608]
[1735640491229,0.0534,93787.0,93786.0,0.0534]
[1735640495533,0.3608,93796.0,93791.0,0.053395]
[1735640495732,0.053396,93794.0,93793.0,0.053395]
[1735640495935,0.053397,93792.0,93780.0,0.36148]
[1735640496231,0.053403,93781.0,93780.0,0.3608]
[1735640498450,0.053403,93781.0,93780.0,0.3618]
[1735640499147,0.053403,93781.0,93780.0,0.3608]
[1735640499349,0.3608,93796.0,93780.0,0.3608]
[1735640499548,0.053398,93793.0,93792.0,0.053395]
[1735640500142,0.00159957,93806.0,93792.0,0.053395]
[1735640500336,0.00159957,93806.0,93804.0,0.05339]
[1735640500337,0.05498857,93806.0,93804.0,0.05339]
[1735640500543,0.41419,93805.0,93804.0,0.05339]
[1735640501255,0.05339,93805.0,93804.0,0.05339]
[1735640502253,0.05839,93805.0,93804.0,0.05339]
[1735640503547,0.05839,93805.0,93804.0,0.05439]
[1735640504855,0.004,93805.0,93804.0,0.05439]
[1735640505559,0.00159957,93806.0,93804.0,0.001]
[1735640505754,0.005,93805.0,93804.0,0.05439]
[1735640506462,0.00159957,93806.0,93805.0,0.05339]
[1735640509355,0.00459957,93806.0,93805.0,0.05339]
[1735640509555,0.00459957,93806.0,93805.0,0.05439]
[1735640510746,0.00459957,93806.0,93805.0,0.05339]
[1735640510950,0.003,93806.0,93805.0,0.41519]
[1735640511960,0.0782,93838.0,93814.0,0.053384]
[1735640511961,0.01351109,93824.0,93814.0,0.053384]
[1735640512257,0.053383,93817.0,93816.0,0.414183]
[1735640513050,0.053383,93817.0,93816.0,0.3608]
[1735640513445,0.3608,93821.0,93814.0,0.001]
[1735640513660,0.053383,93817.0,93816.0,0.001]
[1735640513957,0.053394,93798.0,93796.0,0.3608]
[1735640515061,0.052394,93798.0,93796.0,0.3608]
[1735640515354,0.413194,93798.0,93793.0,0.053396]
[1735640515558,0.413194,93798.0,93794.0,0.053396]
[1735640515954,0.414194,93798.0,93794.0,0.053396]
[1735640516155,0.414194,93798.0,93786.0,0.37415897]
[1735640516356,0.053394,93798.0,93797.0,0.05499313]
[1735640516558,0.054394,93798.0,93797.0,0.05499313]
[1735640517451,0.002,93798.0,93797.0,0.05499313]
[1735640518949,0.001,93798.0,93797.0,0.05499313]
[1735640519152,0.002,93798.0,93797.0,0.05499313]
[1735640519761,0.053387,93810.0,93797.0,0.05499313]
[1735640519944,0.003,93798.0,93797.0,0.05499313]
[1735640521751,0.001,93810.0,93809.0,0.053387]
[1735640521957,0.001,93810.0,93809.0,0.414187]
[1735640522164,0.002,93810.0,93809.0,0.414187]
[1735640522459,0.001,93810.0,93809.0,0.414187]
[1735640522652,0.053385,93813.0,93812.0,0.053386]
[1735640522852,0.47832,93824.0,93817.0,0.053382]
[1735640523152,0.47832,93824.0,93817.0,0.414182]
[1735640523353,0.053382,93818.0,93817.0,0.414182]
[1735640524161,0.053382,93818.0,93817.0,0.415182]
[1735640525556,0.058382,93818.0,93817.0,0.416182]
[1735640526763,0.005,93818.0,93817.0,0.416182]
[1735640526964,0.058382,93818.0,93817.0,0.416182]
[1735640527164,0.005,93818.0,93817.0,0.416182]
[1735640529065,0.005,93818.0,93817.0,0.415182]
[1735640529066,0.004,93818.0,93817.0,0.415182]
[1735640529253,0.00159913,93825.0,93817.0,0.415182]
[1735640529567,0.00159913,93825.0,93824.0,0.053379]
[1735640529756,0.00159913,93825.0,93824.0,0.414179]
[1735640530162,0.0412,93845.0,93824.0,0.3608]
[1735640530364,0.3608,93854.0,93844.0,0.3608]
[1735640530558,0.3608,93854.0,93853.0,0.053362]
[1735640530873,0.053357,93863.0,93862.0,0.053357]
[1735640532267,0.3608,93875.0,93853.0,0.52423347]
[1735640532563,0.3608,93875.0,93865.0,0.10907147]
[1735640533069,0.11489622,93889.0,93873.0,0.3608]
[1735640533268,0.11489622,93889.0,93883.0,0.053345]
[1735640533757,0.3608,93896.0,93883.0,0.053345]
[1735640533957,0.1,93900.0,93883.0,0.053345]
[1735640534158,0.05334,93892.0,93883.0,0.053345]
[1735640534767,0.05334,93892.0,93883.0,0.054345]
[1735640535365,0.1,93900.0,93883.0,0.054345]
[1735640535366,0.053341,93891.0,93883.0,0.054345]
[1735640535662,0.00859859,93884.0,93883.0,0.055345]
[1735640536056,0.00859859,93884.0,93883.0,0.416145]
[1735640539166,0.053337,93897.0,93893.0,0.053339]
[1735640539367,0.053338,93896.0,93894.0,0.3608]
[1735640540271,0.053338,93895.0,93894.0,0.3608]
[1735640540871,0.1,93900.0,93894.0,0.3608]
[1735640541070,0.008,93897.0,93896.0,0.053338]
[1735640541779,0.1,93900.0,93894.0,0.3608]
[1735640541976,0.1,93900.0,93899.0,0.053336]
[1735640542176,0.3608,93912.0,93909.0,0.05333]
[1735640542365,0.3608,93912.0,93900.0,0.21814294]
[1735640542565,0.00159796,93915.0,93913.0,0.053328]
[1735640543077,0.00159796,93915.0,93914.0,0.3608]
[1735640544273,0.00159796,93915.0,93914.0,0.3618]
[1735640544874,0.00159796,93915.0,93914.0,0.415128]
[1735640545871,0.00859796,93915.0,93914.0,0.416128]
[1735640546783,0.007,93915.0,93914.0,0.416128]
[1735640547382,0.007,93915.0,93914.0,0.3628]
[1735640547577,0.060327,93915.0,93914.0,0.3628]
[1735640547776,0.054327,93915.0,93914.0,0.3618]
[1735640548176,0.054327,93915.0,93914.0,0.3608]
[1735640548481,0.054327,93915.0,93914.0,0.414128]
[1735640549181,0.001,93915.0,93914.0,0.414128]
[1735640550489,0.053332,93906.0,93905.0,0.3608]
[1735640550984,0.053338,93896.0,93893.0,0.053339]
[1735640551186,0.053332,93906.0,93887.0,0.053343]
[1735640551187,0.053338,93895.0,93887.0,0.053343]
[1735640551675,0.053338,93895.0,93889.0,0.053341]
[1735640551877,0.054327,93915.0,93901.0,0.053333]
[1735640552083,0.16240147,93911.0,93895.0,0.053338]
[1735640552285,0.053338,93895.0,93890.0,0.3608]
[1735640552784,0.10907147,93911.0,93890.0,0.3608]
[1735640552993,0.053335,93901.0,93898.0,0.10907147]
[1735640553179,0.053335,93901.0,93898.0,0.053336]
[1735640553382,0.053335,93901.0,93891.0,0.10907147]
[1735640553589,0.053335,93901.0,93900.0,0.053336]
[1735640554492,0.053325,93918.0,93898.0,0.3608]
[1735640554684,0.053333,93906.0,93904.0,0.053333]
[1735640554991,0.053329,93912.0,93899.0,0.0385]
[1735640555193,0.3608,93920.0,93907.0,0.053332]
[1735640555381,0.053329,93911.0,93907.0,0.053332]
[1735640555692,0.05333,93910.0,93907.0,0.053332]
[1735640555886,0.05333,93910.0,93900.0,0.0386]
[1735640555887,0.3608,93915.0,93901.0,0.3608]
[1735640556183,0.003,93906.0,93905.0,0.16240447]
[1735640556387,0.053324,93921.0,93905.0,0.053333]
[1735640556591,0.053324,93921.0,93918.0,0.053325]
[1735640556792,0.3608,93927.0,93918.0,0.053325]
[1735640556793,0.053325,93919.0,93918.0,0.053325]
[1735640557890,0.3608,93927.0,93919.0,0.053325]
[1735640557891,0.41412,93927.0,93919.0,0.053325]
[1735640558086,0.053321,93926.0,93924.0,0.053322]
[1735640558295,0.0419,93938.0,93918.0,0.001]
[1735640558296,0.3608,93929.0,93918.0,0.001]
[1735640558588,0.053325,93919.0,93918.0,0.001]
[1735640558890,0.055325,93919.0,93918.0,0.001]
[1735640559592,0.053325,93919.0,93918.0,0.054325]
[1735640559978,0.053325,93919.0,93918.0,0.053325]
[1735640560182,0.3618,93929.0,93913.0,0.3608]
[1735640560381,0.05332,93928.0,93921.0,0.053323]
[1735640560590,0.001,93929.0,93918.0,0.10907147]
[1735640560894,0.053321,93926.0,93925.0,0.053321]
[1735640562192,0.055321,93926.0,93925.0,0.053321]
[1735640562780,0.002,93926.0,93925.0,0.053321]
[1735640562982,0.01281391,93946.0,93925.0,0.053321]
[1735640563289,0.00056001,93945.0,93942.0,0.053312]
[1735640563487,0.053309,93946.0,93940.0,0.053313]
[1735640563687,0.053309,93946.0,93934.0,0.10907147]
[1735640563887,0.053309,93946.0,93942.0,0.053312]
[1735640564085,0.34156583,93956.0,93944.0,0.3608]
[1735640564286,0.053308,93949.0,93946.0,0.053309]
[1735640564486,0.053308,93948.0,93944.0,0.3608]
[1735640565093,0.053308,93948.0,93944.0,0.41411]
[1735640565289,0.053306,93953.0,93950.0,0.053307]
[1735640566692,0.003,93956.0,93955.0,0.053304]
[1735640567087,0.053303,93959.0,93955.0,0.053304]
[1735640567289,0.09818139,93966.0,93965.0,0.053299]
[1735640567495,0.3608,93994.0,93965.0,0.3608]
[1735640567692,0.3608,93994.0,93977.0,0.3608]
[1735640567887,0.10907147,93990.0,93965.0,0.3608]
[1735640568083,0.053282,93995.0,93965.0,0.3608]
[1735640568301,0.05488597,93982.0,93978.0,0.053291]
[1735640568494,0.05488597,93982.0,93974.0,0.3608]
[1735640568692,0.05488597,93982.0,93979.0,0.053291]
[1735640568888,0.05888597,93982.0,93979.0,0.053291]
[1735640569202,0.00559697,93982.0,93981.0,0.05329]
[1735640569903,0.05329,93981.0,93977.0,0.053292]
[1735640570090,0.053291,93979.0,93978.0,0.001]
[1735640572200,0.053294,93974.0,93969.0,0.053296]
[1735640572403,0.053294,93973.0,93969.0,0.053296]
[1735640572597,0.053301,93962.0,93952.0,0.3608]
[1735640572989,0.053298,93967.0,93961.0,0.414101]
[1735640573191,0.0397,93972.0,93961.0,0.414101]
[1735640573391,0.053299,93964.0,93961.0,0.414101]
[1735640573590,0.0397,93972.0,93961.0,0.414101]
[1735640573793,0.0533,93962.0,93961.0,0.414101]
[1735640574306,0.0533,93962.0,93961.0,0.3608]
[1735640574700,0.053301,93960.0,93958.0,0.053302]
[1735640575101,0.053301,93960.0,93959.0,0.05489847]
[1735640575503,0.053299,93965.0,93962.0,0.0533]
[1735640575705,0.0533,93963.0,93962.0,0.0533]
[1735640576700,0.0797,93972.0,93960.0,0.3608]
[1735640577002,0.053301,93961.0,93960.0,0.3608]
[1735640577398,0.052301,93961.0,93960.0,0.3608]
[1735640578307,0.053301,93961.0,93960.0,0.414101]
[1735640579402,0.001,93961.0,93960.0,0.414101]
[1735640579600,0.002,93961.0,93960.0,0.414101]
[1735640581111,0.002,93961.0,93959.0,0.00159647]
[1735640581112,0.053301,93960.0,93959.0,0.00159647]
[1735640581614,0.053306,93952.0,93951.0,0.3608]
[1735640581997,0.053308,93949.0,93942.0,0.3608]
[1735640582202,0.053309,93946.0,93942.0,0.414112]
[1735640582503,0.46987147,93952.0,93942.0,0.3608]
[1735640582697,0.053311,93943.0,93942.0,0.3608]
[1735640582925,0.053311,93943.0,93930.0,0.053318]
[1735640583105,0.10907147,93940.0,93930.0,0.053318]
[1735640583507,0.10807147,93940.0,93930.0,0.053318]
[1735640583707,0.053313,93939.0,93930.0,0.053318]
[1735640583905,0.053318,93931.0,93930.0,0.053318]
[1735640584906,0.05332,93927.0,93926.0,0.3608]
[1735640585523,0.05232,93927.0,93926.0,0.414121]
[1735640586310,0.053316,93936.0,93935.0,0.053314]
[1735640586503,0.053316,93936.0,93935.0,0.414114]
[1735640587711,0.056316,93936.0,93935.0,0.415114]
[1735640588314,0.003,93936.0,93935.0,0.415114]
[1735640588702,0.053311,93945.0,93936.0,0.053315]
[1735640588909,0.053311,93945.0,93944.0,0.414111]
[1735640590420,0.056311,93945.0,93944.0,0.415111]
[1735640591409,0.058311,93945.0,93944.0,0.415111]
[1735640592010,0.058311,93945.0,93944.0,0.3618]
[1735640592216,0.058311,93945.0,93944.0,0.001]
[1735640593019,0.053322,93924.0,93921.0,0.3608]
[1735640593410,0.053322,93924.0,93906.0,0.0418]
[1735640593411,0.414122,93924.0,93907.0,0.053331]
[1735640593622,0.053328,93913.0,93906.0,0.0418]
[1735640594520,0.051328,93913.0,93909.0,0.05333]
[1735640595413,0.051328,93913.0,93912.0,0.3638]
[1735640595615,0.051328,93913.0,93912.0,0.3678]
[1735640595813,0.051328,93913.0,93912.0,0.36755]
[1735640596014,0.051328,93913.0,93912.0,0.007]
[1735640596325,0.046333,93905.0,93904.0,0.3608]
[1735640596823,0.042333,93905.0,93904.0,0.3608]
[1735640598328,0.039333,93905.0,93904.0,0.3608]
[1735640599020,0.036333,93905.0,93904.0,0.414133]
[1735640599217,0.036333,93905.0,93904.0,0.419133]
[1735640599619,0.037333,93905.0,93904.0,0.422133]
[1735640606418,0.09818876,93918.0,93904.0,0.3688]
[1735640606625,0.09818876,93918.0,93916.0,0.3608]
[1735640606823,0.053329,93913.0,93912.0,0.053328]
[1735640607524,0.053332,93906.0,93905.0,0.053332]
[1735640608922,0.051332,93906.0,93905.0,0.053332]
[1735640609828,0.052332,93906.0,93905.0,0.059332]
[1735640610820,0.052332,93906.0,93905.0,0.063332]
[1735640611020,0.052332,93906.0,93905.0,0.01]
[1735640616932,0.001,93906.0,93886.0,0.36239776]
[1735640617140,0.053343,93887.0,93886.0,0.36239776]
[1735640618034,0.053343,93887.0,93886.0,0.37039776]
[1735640618933,0.054343,93887.0,93886.0,0.37039776]
[1735640619528,0.055343,93887.0,93886.0,0.37339776]
[1735640620139,0.058343,93887.0,93886.0,0.37039776]
[1735640620839,0.058343,93887.0,93886.0,0.00959776]
[1735640621039,0.057343,93887.0,93886.0,0.00159776]
[1735640621345,0.058343,93887.0,93886.0,0.00159776]
[1735640623336,0.053348,93878.0,93877.0,0.3608]
[1735640624448,0.053348,93878.0,93877.0,0.3618]
[1735640624946,0.053348,93878.0,93877.0,0.06671002]
[1735640625745,0.053348,93878.0,93877.0,0.06771002]
[1735640625948,0.053348,93878.0,93877.0,0.055349]
[1735640626339,0.053348,93878.0,93877.0,0.054349]
[1735640626936,0.09823558,93890.0,93877.0,0.054349]
[1735640627143,0.053342,93888.0,93887.0,0.414142]
[1735640627942,0.40117935,93893.0,93892.0,0.05334]
[1735640628846,0.40117935,93893.0,93888.0,0.038]
[1735640628847,0.34783935,93894.0,93888.0,0.038]
[1735640629147,0.34783935,93894.0,93893.0,0.053339]
[1735640629541,0.40117835,93894.0,93893.0,0.053339]
[1735640631046,0.40817835,93894.0,93893.0,0.053339]
[1735640631548,0.41117835,93894.0,93893.0,0.053339]
[1735640633555,0.41117835,93894.0,93840.0,0.58687147]
[1735640633556,0.053346,93883.0,93879.0,0.053347]
[1735640633755,0.053342,93889.0,93880.0,0.053347]
[1735640634051,0.35783935,93894.0,93891.0,0.05334]
[1735640634250,0.35783935,93894.0,93888.0,0.3608]
[1735640634448,0.053341,93891.0,93889.0,0.0779]
[1735640635041,0.053341,93891.0,93888.0,0.3608]